bitfinex-derivatives/quotes_ETHF0:USTF0_20251008
["timestamp","ask_amount","ask_price","bid_price","bid_amount"]
[1759888201391,0.0017776,4489.0,4488.9,0.40078]
[1759888201596,0.93195176,4489.0,4488.9,1.14958]
[1759888201800,3.86583422,4489.0,4488.9,1.14958]
[1759888202402,3.64423422,4489.0,4488.9,1.14958]
[1759888202697,3.43303422,4489.0,4488.9,1.14958]
[1759888203397,3.64423422,4489.0,4488.9,1.14958]
[1759888203694,3.86583422,4489.0,4488.9,1.14958]
[1759888203893,0.4328,4488.7,4488.6,3.60861]
[1759888204198,3.67873811,4488.7,4488.6,4.14971]
[1759888204996,4.17582855,4488.7,4488.6,4.14971]
[1759888205592,0.4328,4488.3,4488.2,0.61195]
[1759888205893,3.77331773,4488.3,4488.2,1.14965]
[1759888206094,4.08361773,4488.3,4488.2,0.94195]
[1759888206393,0.7431,4487.5,4487.4,4.14982]
[1759888206895,3.66931876,4487.5,4487.4,4.14982]
[1759888207996,3.35901876,4487.5,4487.4,4.35752]
[1759888210704,3.66931876,4487.5,4487.4,4.35752]
[1759888210902,3.66931876,4487.5,4487.4,4.14982]
[1759888211605,3.35901876,4487.5,4487.4,4.35752]
[1759888211803,3.66931876,4487.5,4487.4,4.35752]
[1759888213805,1.14394,4488.3,4488.2,0.61195]
[1759888214103,1.14394,4488.3,4488.2,1.14965]
[1759888214104,4.42261133,4488.3,4488.2,1.14965]
[1759888214307,4.73291133,4488.3,4488.2,1.14965]
[1759888214613,0.1166776,4489.0,4488.2,1.37265]
[1759888214614,0.223,4488.7,4488.2,1.37265]
[1759888214797,0.4328,4489.7,4489.6,0.7488]
[1759888215105,4.00139095,4489.7,4489.6,0.7488]
[1759888215801,4.00341375,4489.7,4489.6,0.75049095]
[1759888219705,4.20711375,4489.7,4489.6,0.33169095]
[1759888220607,4.20711375,4489.7,4489.6,0.54279095]
[1759888221204,3.70472448,4489.7,4489.6,0.54279095]
[1759888222513,3.50102448,4489.7,4489.6,0.54279095]
[1759888223214,3.70472448,4489.7,4489.6,0.54279095]
[1759888223707,3.27802448,4489.7,4489.6,0.54279095]
[1759888223913,3.50102448,4489.7,4489.6,1.5073543]
[1759888224809,3.90173448,4489.7,4489.6,1.5073543]
[1759888225106,4.40281735,4489.7,4489.6,1.5073543]
[1759888226613,4.60651735,4489.7,4489.6,1.5073543]
[1759888227124,4.40281735,4489.7,4489.6,1.5073543]
[1759888228114,4.4027747,4489.7,4489.6,1.5073543]
[1759888228714,4.6059747,4489.7,4489.6,1.5073543]
[1759888229512,4.6059747,4489.7,4489.6,1.2996543]
[1759888229718,4.6059747,4489.7,4489.6,0.33169095]
[1759888230315,4.6059747,4489.7,4489.6,0.73241095]
[1759888231018,4.6059747,4489.7,4489.6,0.00169095]
[1759888231217,1.00186,4489.4,4488.1,3.2078]
[1759888231421,1.00186,4489.4,4488.5,0.83882]
[1759888231422,1.03821,4488.6,4488.5,0.83882]
[1759888231620,1.03821,4488.6,4488.5,0.1311]
[1759888231920,0.6374,4488.2,4488.1,3.2078]
[1759888232115,0.8604,4488.2,4488.1,3.7235]
[1759888232313,3.71726736,4488.2,4488.1,3.72512248]
[1759888233624,3.71726736,4488.2,4488.1,0.00162248]
[1759888233815,4.21853255,4488.2,4488.1,0.00162248]
[1759888234919,3.71726736,4488.2,4488.1,0.00162248]
[1759888235716,7.68193071,4488.2,4488.1,0.00162248]
[1759888235927,8.18312321,4488.2,4488.1,0.00162248]
[1759888236316,7.68193071,4488.2,4488.1,0.00162248]
[1759888237724,7.68193071,4488.2,4488.1,0.51732248]
[1759888237725,3.49426736,4488.2,4488.1,0.51732248]
[1759888238022,3.71726736,4488.2,4488.1,0.30852248]
[1759888238222,3.71726736,4488.2,4488.1,0.00162248]
[1759888239418,3.51406736,4488.2,4488.1,0.51732248]
[1759888239622,3.51406736,4488.2,4488.1,0.73442248]
[1759888240022,3.71726736,4488.2,4488.1,0.51732248]
[1759888241225,3.71726736,4488.2,4488.1,0.30852248]
[1759888241519,3.71726736,4488.2,4488.1,0.00162248]
[1759888242025,0.4304,4487.1,4487.0,6.80498217]
[1759888242829,0.4304,4487.1,4487.0,6.80681722]
[1759888243128,0.632,4487.1,4487.0,6.80681722]
[1759888243325,0.632,4487.1,4487.0,3.65413505]
[1759888243326,3.81199942,4487.1,4487.0,3.65413505]
[1759888243624,3.81199942,4487.1,4487.0,3.20963505]
[1759888243820,3.81199942,4487.1,4487.0,0.00183505]
[1759888244022,3.81199942,4487.1,4487.0,0.66593505]
[1759888244226,3.61039942,4487.1,4487.0,0.89143505]
[1759888244528,3.61039942,4487.1,4487.0,1.6482984]
[1759888245321,3.81199942,4487.1,4487.0,1.4227984]
[1759888245523,3.81199942,4487.1,4487.0,0.00183505]
[1759888246523,3.81199942,4487.1,4487.0,0.31843505]
[1759888248925,4.21293942,4487.1,4487.0,0.00183505]
[1759888250742,4.96980277,4487.1,4487.0,0.00183505]
[1759888252537,3.61039942,4487.1,4487.0,1.29238505]
[1759888252838,4.21293942,4487.1,4487.0,0.00183505]
[1759888256750,4.21293942,4487.1,4487.0,0.40278505]
[1759888256946,4.21293942,4487.1,4487.0,0.00183505]
[1759888260551,4.21293942,4487.1,4487.0,0.32853505]
[1759888260752,4.21293942,4487.1,4487.0,0.65803505]
[1759888261450,3.81199942,4487.1,4487.0,1.05898505]
[1759888261651,3.81199942,4487.1,4487.0,4.48318505]
[1759888261652,2.95699942,4487.1,4487.0,4.48318505]
[1759888262053,0.4368,4487.2,4487.1,1.15084]
[1759888262246,0.4368,4487.2,4487.1,1.90770335]
[1759888262447,3.35851611,4487.2,4487.1,1.90770335]
[1759888262646,4.52877946,4487.2,4487.0,0.00183505]
[1759888262852,4.52877946,4487.2,4487.0,0.72948505]
[1759888262853,0.6272,4487.1,4487.0,0.72948505]
[1759888263152,3.36127649,4487.1,4487.0,2.0322484]
[1759888263656,3.58427649,4487.1,4487.0,5.2400484]
[1759888263852,3.37307649,4487.1,4487.0,5.2400484]
[1759888264053,3.15927649,4487.1,4487.0,5.2400484]
[1759888266656,2.93627649,4487.1,4487.0,5.2400484]
[1759888266858,0.223,4487.2,4487.1,0.82414]
[1759888267152,0.75686335,4488.4,4487.9,0.82406]
[1759888267153,0.2138,4488.0,4487.9,0.82406]
[1759888267357,0.93267402,4488.0,4487.9,1.15076]
[1759888267550,3.85069368,4488.0,4487.9,1.15076]
[1759888269361,2.91801966,4488.0,4487.9,6.15076]
[1759888269556,0.223,4488.2,4488.1,0.82405]
[1759888269756,0.223,4488.2,4488.1,1.90761335]
[1759888269956,0.223,4488.2,4488.1,6.90761335]
[1759888270466,3.6328,4489.4,4489.3,0.5335]
[1759888270658,1.14357495,4489.4,4489.3,0.5335]
[1759888270962,4.21447172,4489.4,4489.3,0.5335]
[1759888271264,4.01227172,4489.4,4489.3,0.93425]
[1759888271453,4.01227172,4489.4,4489.3,1.15065]
[1759888272360,3.30549677,4489.4,4489.3,1.90751335]
[1759888272559,3.09169677,4489.4,4489.3,1.90751335]
[1759888272864,3.51669677,4489.4,4489.3,1.90751335]
[1759888273660,3.71889677,4489.4,4489.3,0.3267]
[1759888273860,3.71889677,4489.4,4488.6,3.2078]
[1759888273861,0.6272,4488.8,4488.7,0.3267]
[1759888274058,0.8502,4488.8,4488.7,0.3267]
[1759888274261,3.56062854,4488.8,4488.7,0.9343]
[1759888274566,3.56062854,4488.8,4488.7,1.1507]
[1759888276066,3.56062854,4488.8,4488.7,0.9343]
[1759888276267,3.76282854,4488.8,4488.7,0.7275]
[1759888278768,3.76282854,4488.8,4488.7,1.48436335]
[1759888278963,3.76282854,4488.8,4488.7,1.69116335]
[1759888280665,0.6272,4488.6,4488.5,0.72752]
[1759888280863,0.648,4488.6,4488.5,1.27342]
[1759888281070,3.55007786,4488.6,4488.5,1.27342]
[1759888281265,0.2138,4489.3,4489.2,0.7499]
[1759888281465,0.648,4489.3,4489.2,1.15066]
[1759888281660,3.60435079,4489.3,4489.2,1.15066]
[1759888281861,3.39315079,4489.3,4489.2,1.15066]
[1759888282064,3.39315079,4489.3,4489.2,1.90752335]
[1759888282262,3.80475079,4489.3,4489.2,0.72746]
[1759888282666,3.80475079,4489.3,4489.2,0.94096]
[1759888282866,3.60275079,4489.3,4489.2,0.94096]
[1759888283361,3.60275079,4489.3,4489.2,1.16096]
[1759888283769,3.80475079,4489.3,4489.2,0.94096]
[1759888283970,3.60275079,4489.3,4489.2,0.94096]
[1759888285069,3.80475079,4489.3,4489.2,0.72746]
[1759888286074,3.80475079,4489.3,4489.2,0.94096]
[1759888287871,0.40077,4489.1,4489.0,0.40076]
[1759888288071,0.8586,4489.1,4489.0,0.40076]
[1759888288377,3.27019515,4489.1,4489.0,1.24636]
[1759888288574,3.49319515,4489.1,4489.0,1.24636]
[1759888289173,3.27019515,4489.1,4489.0,1.24636]
[1759888289370,3.49319515,4489.1,4489.0,1.24636]
[1759888289877,3.05959515,4489.1,4489.0,2.18964522]
[1759888291278,3.28179515,4489.1,4489.0,5.39744522]
[1759888291978,3.05959515,4489.1,4489.0,5.39744522]
[1759888292573,2.83659515,4489.1,4489.0,5.39744522]
[1759888292778,3.05959515,4489.1,4489.0,5.39744522]
[1759888292974,0.223,4489.1,4489.0,5.39744522]
[1759888293174,3.16211365,4489.1,4489.0,5.39744522]
[1759888293483,3.38431365,4489.1,4489.0,5.39744522]
[1759888294377,3.16211365,4489.1,4489.0,5.39744522]
[1759888296379,3.38431365,4489.1,4489.0,5.39744522]
[1759888297178,3.87901936,4489.1,4489.0,5.39744522]
[1759888297677,4.29241936,4489.1,4489.0,1.24636]
[1759888298080,4.09041936,4489.1,4489.0,1.24636]
[1759888298986,4.09041936,4489.1,4489.0,4.45416]
[1759888299379,3.43381936,4489.1,4489.0,4.45416]
[1759888299686,3.65601936,4489.1,4489.0,4.45416]
[1759888301784,3.43381936,4489.1,4489.0,5.39744522]
[1759888302287,0.49470571,4489.1,4489.0,5.62044522]
[1759888303287,0.0020228,4489.7,4489.6,1.16782]
[1759888303483,0.49729601,4489.7,4489.6,1.16782]
[1759888303685,3.45223152,4489.7,4489.6,1.16782]
[1759888305281,3.67583152,4489.7,4489.6,1.16782]
[1759888305481,3.89883152,4489.7,4489.6,1.16782]
[1759888306885,4.10863152,4489.7,4489.6,1.16782]
[1759888307090,0.83412,4489.6,4489.5,3.2078]
[1759888307292,1.53139321,4489.6,4489.5,3.2078]
[1759888307587,4.43512138,4489.6,4489.5,3.2078]
[1759888308292,4.43512138,4489.6,4489.5,3.60853]
[1759888308689,4.43512138,4489.6,4489.2,0.3343]
[1759888308690,0.4334,4489.3,4489.2,0.73506]
[1759888308890,0.8584,4489.3,4489.2,0.95356]
[1759888309093,3.70233858,4489.3,4489.2,0.95356]
[1759888309391,4.5984194,4489.3,4489.2,0.95356]
[1759888309992,4.1976694,4489.3,4489.2,0.95356]
[1759888311280,4.5984194,4489.3,4489.2,0.5528]
[1759888311481,4.1976694,4489.3,4489.2,0.95356]
[1759888312591,3.9956694,4489.3,4489.2,0.95356]
[1759888312789,2.84393858,4489.3,4489.2,1.16786]
[1759888313090,0.0020228,4489.7,4489.6,1.16782]
[1759888313091,0.2250228,4489.7,4489.6,1.16782]
[1759888313290,0.94405505,4489.7,4489.6,1.16782]
[1759888313483,3.82625447,4489.7,4489.6,1.16782]
[1759888318994,4.03605447,4489.7,4489.5,3.2078]
[1759888319195,1.02067,4489.2,4489.1,0.72917]
[1759888319395,1.24367,4489.2,4489.1,0.94517]
[1759888319595,4.1090693,4489.2,4489.1,0.94517]
[1759888319792,3.7082993,4489.2,4489.1,0.94517]
[1759888320097,0.41,4489.1,4489.0,0.40077]
[1759888320285,1.1153952,4489.1,4489.0,0.40077]
[1759888320597,4.02621966,4489.1,4489.0,0.72917]
[1759888321095,4.42698966,4489.1,4489.0,0.72917]
[1759888321690,4.42698966,4489.1,4489.0,0.40077]
[1759888321889,3.40631966,4489.1,4489.0,2.09515522]
[1759888322095,2.91082446,4489.1,4489.0,2.44975522]
[1759888325696,0.223,4489.4,4489.3,1.15185]
[1759888325897,0.71839127,4489.4,4489.3,4.35965]
[1759888326090,0.72983074,4489.4,4489.3,4.35965]
[1759888326489,0.50683074,4489.4,4489.3,4.35965]
[1759888326699,0.2250228,4489.7,4489.6,1.15182]
[1759888326900,0.73184612,4489.7,4489.6,1.15182]
[1759888327100,3.65693437,4489.7,4489.6,1.15182]
[1759888327400,3.43393437,4489.7,4489.6,1.15182]
[1759888328095,3.43393437,4489.7,4489.6,1.37482]
[1759888328402,2.92711105,4489.7,4489.6,1.37482]
[1759888328601,0.0020228,4489.7,4489.6,1.37482]
[1759888329400,0.2106228,4489.7,4489.6,1.37482]
[1759888329796,0.0020228,4489.7,4489.6,1.37482]
[1759888331691,0.4205228,4489.7,4489.6,1.15182]
[1759888331899,0.4205228,4489.7,4489.6,0.40072]
[1759888331900,4.48009695,4489.7,4489.6,0.40072]
[1759888332703,9.48009695,4489.7,4489.6,0.40072]
[1759888333106,1.02064,4489.5,4489.4,0.72913]
[1759888333406,4.481304,4489.5,4489.4,0.72913]
[1759888334197,0.6199,4489.0,4488.9,0.3284]
[1759888334501,0.2086,4489.6,4489.5,1.28342]
[1759888334696,0.0020228,4489.7,4489.6,0.5444]
[1759888334901,0.0020228,4489.7,4489.6,0.7511]
[1759888342418,0.0020228,4489.7,4489.6,0.9741]
[1759888343018,0.0020228,4489.7,4489.6,1.73067635]
[1759888345024,0.0020228,4489.7,4489.6,2.13139635]
[1759888347119,0.4267,4490.8,4490.7,0.61532]
[1759888347419,4.20815519,4490.8,4490.7,1.89719635]
[1759888347821,4.40995519,4490.8,4490.7,1.89719635]
[1759888348022,4.40995519,4490.8,4490.7,1.68709635]
[1759888348222,3.90567026,4490.8,4490.7,1.68927234]
[1759888348423,4.41158172,4490.8,4490.7,1.68927234]
[1759888349322,4.41158172,4490.8,4490.7,0.31737599]
[1759888349517,4.41158172,4490.8,4490.7,0.00217599]
[1759888349725,4.41158172,4490.8,4490.7,0.40279599]
[1759888350325,4.41158172,4490.8,4490.7,0.71799599]
[1759888352516,4.63458172,4490.8,4490.7,0.71799599]
[1759888353931,4.41158172,4490.8,4490.7,0.71799599]
[1759888354230,4.63458172,4490.8,4490.7,0.71799599]
[1759888354928,4.63458172,4490.8,4490.7,0.31737599]
[1759888355125,4.63458172,4490.8,4490.7,0.71799599]
[1759888357422,4.03217172,4490.8,4490.7,0.93269599]
[1759888357628,4.03217172,4490.8,4490.7,1.14279599]
[1759888358023,4.43278172,4490.8,4490.7,1.14279599]
[1759888358230,4.63458172,4490.8,4490.7,1.14279599]
[1759888360830,4.23397172,4490.8,4490.7,1.14279599]
[1759888361129,4.03217172,4490.8,4490.7,1.14279599]
[1759888366324,4.43278172,4490.8,4490.7,1.14279599]
[1759888366530,4.63448172,4490.8,4490.7,0.93269599]
[1759888367231,4.41148172,4490.8,4490.7,0.93269599]
[1759888367434,4.63448172,4490.8,4490.7,0.93269599]
[1759888368032,4.03217172,4490.8,4490.7,1.14119599]
[1759888369329,4.63448172,4490.8,4490.7,1.14119599]
[1759888369836,4.23387172,4490.8,4490.7,1.14119599]
[1759888370037,4.03217172,4490.8,4490.7,1.14119599]
[1759888370433,3.80917172,4490.8,4490.7,1.14119599]
[1759888370630,4.03217172,4490.8,4490.7,1.14119599]
[1759888371732,3.38247172,4490.8,4490.7,1.14119599]
[1759888372635,3.38247172,4490.8,4490.7,1.36419599]
[1759888373229,3.60457172,4490.8,4490.7,1.36419599]
[1759888373431,3.82857172,4490.8,4490.7,1.36419599]
[1759888373630,4.05157172,4490.8,4490.7,1.14119599]
[1759888374731,4.65388172,4490.8,4490.7,0.71799599]
[1759888374933,4.05157172,4490.8,4490.7,1.15119599]
[1759888377742,4.04247172,4490.8,4490.7,1.15119599]
[1759888379045,3.82757172,4490.8,4490.7,1.15119599]
[1759888380537,3.60457172,4490.8,4490.7,1.15119599]
[1759888380742,3.82757172,4490.8,4490.7,1.15119599]
[1759888381841,3.60457172,4490.8,4490.7,1.15119599]
[1759888382041,3.82757172,4490.8,4490.7,1.15119599]
[1759888382544,4.42178172,4490.8,4490.7,0.00217599]
[1759888382744,4.64478172,4490.8,4490.7,0.40279599]
[1759888382945,4.64478172,4490.8,4490.7,0.71409599]
[1759888385443,4.64478172,4490.8,4490.7,0.93239599]
[1759888385750,4.64478172,4490.8,4490.7,0.71409599]
[1759888387042,3.60547172,4490.8,4490.7,1.14719599]
[1759888387551,3.60547172,4490.8,4490.7,1.37019599]
[1759888388647,3.38247172,4490.8,4490.7,1.37019599]
[1759888389847,3.81277172,4490.8,4490.7,1.14719599]
[1759888390055,4.03577172,4490.8,4490.7,1.14719599]
[1759888393549,3.82087172,4490.8,4490.7,1.14719599]
[1759888394150,3.38247172,4490.8,4490.7,1.14719599]
[1759888394957,3.59787172,4490.8,4490.7,1.14719599]
[1759888395157,3.59787172,4490.8,4490.7,1.37019599]
[1759888396356,4.01447172,4490.8,4490.7,0.71409599]
[1759888396557,4.01447172,4490.8,4490.7,1.68897234]
[1759888396961,3.81277172,4490.8,4490.7,1.68897234]
[1759888397258,4.01447172,4490.8,4490.7,1.68897234]
[1759888397660,3.81277172,4490.8,4490.7,1.90377234]
[1759888398962,4.01447172,4490.8,4490.7,0.40279599]
[1759888399157,3.81277172,4490.8,4490.7,1.14719599]
[1759888399667,3.81277172,4490.8,4490.7,1.90377234]
[1759888400563,3.60547172,4490.8,4490.7,1.90377234]
[1759888401267,3.60547172,4490.8,4490.7,2.12677234]
[1759888402165,3.38247172,4490.8,4490.7,2.12677234]
[1759888403166,3.38247172,4490.8,4490.7,2.3125644]
[1759888404361,0.0016773,4490.8,4490.7,2.3125644]
[1759888404863,3.719,4492.9,4492.0,0.8749]
[1759888404864,3.4235,4492.1,4492.0,0.8749]
[1759888405058,3.93005099,4492.1,4492.0,1.27541]
[1759888405269,7.31723462,4492.1,4492.0,1.27541]
[1759888405567,7.51933462,4492.1,4492.0,1.06041]
[1759888405768,7.5221982,4492.1,4492.0,1.06041]
[1759888406869,7.5221982,4492.1,4492.0,0.3107]
[1759888410367,7.5221982,4492.1,4491.5,0.1331]
[1759888410575,0.638,4491.5,4491.4,0.3131]
[1759888410865,4.21765802,4491.5,4491.4,0.3131]
[1759888411070,1.03856,4491.4,4491.3,3.2078]
[1759888411270,1.54417684,4491.4,4491.3,3.2078]
[1759888411570,1.0386,4491.1,4491.0,0.40059]
[1759888411766,1.2616,4491.1,4491.0,0.40059]
[1759888411968,4.22015971,4491.1,4491.0,0.71369]
[1759888412171,4.72580786,4491.1,4491.0,0.71369]
[1759888415774,3.68630786,4491.1,4491.0,1.27769]
[1759888415976,4.32520786,4491.1,4491.0,1.06269]
[1759888416378,4.32520786,4491.1,4491.0,0.84729]
[1759888416679,1.0386,4491.0,4490.9,0.4006]
[1759888416978,4.46202302,4491.0,4490.9,0.4006]
[1759888417277,4.15192302,4491.0,4490.9,0.4006]
[1759888417477,4.06142302,4491.0,4490.9,0.4006]
[1759888417680,3.85972302,4491.0,4490.9,1.1441]
[1759888418376,4.08272302,4491.0,4490.9,1.1441]
[1759888419075,0.638,4490.9,4490.8,3.60841]
[1759888419280,1.14364815,4490.9,4490.8,4.13691]
[1759888419578,4.07276824,4490.9,4490.8,4.13691]
[1759888419974,4.07276824,4490.9,4490.8,0.92911]
[1759888420871,4.47337824,4490.9,4490.8,0.40061]
[1759888421071,4.47337824,4490.9,4490.8,0.72051]
[1759888421479,4.47337824,4490.9,4490.8,0.3199]
[1759888421882,4.07276824,4490.9,4490.8,0.72051]
[1759888422276,1.01471,4490.8,4490.7,0.40279599]
[1759888422474,1.74335815,4490.8,4490.7,0.40279599]
[1759888422778,4.6020221,4490.8,4490.7,0.72269599]
[1759888424081,4.2014121,4490.8,4490.7,0.72269599]
[1759888425085,4.6020221,4490.8,4490.7,0.72269599]
[1759888427183,4.6020221,4490.8,4489.8,3.9284]
[1759888427184,0.40069,4490.0,4489.8,3.9284]
[1759888427388,0.6141,4489.7,4489.6,0.3199]
[1759888427588,0.8371,4489.7,4489.6,0.72062]
[1759888427780,3.75897451,4489.7,4489.6,0.72062]
[1759888427978,3.75897451,4489.7,4489.6,0.93482]
[1759888428187,3.55717451,4489.7,4489.6,1.14148686]
[1759888428984,3.14487451,4489.7,4489.6,1.14148686]
[1759888429386,2.92187451,4489.7,4489.6,1.14148686]
[1759888429586,3.14487451,4489.7,4489.6,1.14148686]
[1759888429786,0.223,4489.7,4489.6,1.14148686]
[1759888429992,3.142811,4489.7,4489.6,1.14148686]
[1759888433396,3.756911,4489.7,4489.6,0.72248686]
[1759888433591,4.157621,4489.7,4489.6,0.00186686]
[1759888433787,4.157621,4489.7,4489.6,0.40258686]
[1759888434296,4.157621,4489.7,4489.6,0.72248686]
[1759888434492,4.157621,4489.7,4489.6,0.00186686]
[1759888434992,4.65691455,4489.7,4489.6,0.00186686]
[1759888437494,0.2125,4488.9,4488.8,0.3157]
[1759888437695,0.8609,4488.9,4488.8,0.3157]
[1759888437891,3.80548791,4488.9,4488.8,0.3157]
[1759888438591,3.80764898,4488.9,4488.8,0.3178116]
[1759888438792,3.80764898,4488.9,4488.8,0.9410016]
[1759888438992,3.60564898,4488.9,4488.8,0.9410016]
[1759888439691,3.80764898,4488.9,4488.8,0.9410016]
[1759888440291,3.60564898,4488.9,4488.8,0.9410016]
[1759888440697,3.60564898,4488.9,4488.8,1.1522016]
[1759888441600,3.15924898,4488.9,4488.8,1.1522016]
[1759888441892,2.94674898,4488.9,4488.8,1.1522016]
[1759888442193,2.94674898,4488.9,4488.8,4.3600016]
[1759888442497,3.15924898,4488.9,4488.8,4.3600016]
[1759888443699,3.58464898,4488.9,4488.8,4.1488016]
[1759888446197,2.94674898,4488.9,4488.8,4.3600016]
[1759888448301,3.15924898,4488.9,4488.8,4.3600016]
[1759888448702,3.98542898,4488.9,4488.8,0.0021116]
[1759888448898,4.20842898,4488.9,4488.8,0.0021116]
[1759888449599,3.80764898,4488.9,4488.8,0.7186016]
[1759888451998,4.20842898,4488.9,4488.8,0.3178116]
[1759888452198,4.20842898,4488.9,4488.8,0.0021116]
[1759888452704,3.80764898,4488.9,4488.8,0.7186016]
[1759888453698,3.80764898,4488.9,4488.8,0.9410016]
[1759888454096,3.60564898,4488.9,4488.8,0.9410016]
[1759888454505,4.20842898,4488.9,4488.8,0.3178116]
[1759888454904,4.20842898,4488.9,4488.8,0.7186016]
[1759888455605,4.20842898,4488.9,4488.8,0.3178116]
[1759888456301,4.20842898,4488.9,4488.8,0.0021116]
[1759888456503,4.20842898,4488.9,4488.8,0.4029016]
[1759888456902,4.20842898,4488.9,4488.8,0.0021116]
[1759888458098,3.80764898,4488.9,4488.8,0.9410016]
[1759888458609,3.60564898,4488.9,4488.8,1.1522016]
[1759888459812,4.00642898,4488.9,4488.8,1.1522016]
[1759888460009,3.78342898,4488.9,4488.8,1.1522016]
[1759888460207,4.00642898,4488.9,4488.8,1.1522016]
[1759888460705,4.20842898,4488.9,4488.8,1.1522016]
[1759888461105,4.20842898,4488.9,4488.8,0.0021116]
[1759888461310,4.70921307,4488.9,4488.8,0.0021116]
[1759888463408,9.70921307,4488.9,4488.8,0.0021116]
[1759888463608,0.83678,4487.8,4487.7,0.40089]
[1759888463816,1.76046409,4487.8,4487.7,0.40089]
[1759888464020,4.69816429,4487.8,4487.7,0.71659]
[1759888464313,0.4359,4487.4,4487.3,0.40093]
[1759888464608,3.52850926,4487.4,4487.3,1.15260025]
[1759888465018,3.52850926,4487.4,4487.3,1.9100822]
[1759888465410,3.30510926,4487.4,4487.3,1.9100822]
[1759888469115,3.08210926,4487.4,4487.3,1.9100822]
[1759888469314,3.30510926,4487.4,4487.3,1.9100822]
[1759888470112,3.30510926,4487.4,4487.3,1.15260025]
[1759888470113,3.72850926,4487.4,4487.3,1.15260025]
[1759888470309,2.86960926,4487.4,4487.3,1.15260025]
[1759888470509,3.4194,4488.7,4488.6,0.40081]
[1759888470817,7.2828616,4488.7,4488.6,1.90089195]
[1759888471219,4.0750616,4488.7,4488.6,1.90089195]
[1759888471519,3.57472787,4488.7,4488.6,1.90089195]
[1759888472419,3.57472787,4488.7,4488.6,1.14341]
[1759888473713,2.93562787,4488.7,4488.6,1.90089195]
[1759888473914,0.61826107,4488.9,4488.8,1.14339]
[1759888474113,0.61826107,4488.9,4488.8,0.92479]
[1759888474314,3.11005107,4488.9,4488.4,0.3122]
[1759888474510,0.4161,4488.4,4488.3,3.2078]
[1759888474715,0.8391,4488.4,4488.3,3.2078]
[1759888474916,0.4161,4488.2,4488.1,0.3122]
[1759888475116,0.6161,4488.1,4488.0,0.71306]
[1759888475419,3.57373614,4488.1,4488.0,0.71306]
[1759888476922,3.57373614,4488.1,4487.9,0.40087]
[1759888477121,0.8391,4488.0,4487.9,0.40087]
[1759888477519,0.8391,4488.0,4487.3,0.00237025]
[1759888477520,0.6161,4487.4,4487.3,0.00237025]
[1759888477718,1.34081294,4487.4,4487.3,0.31457025]
[1759888477913,5.3726562,4487.4,4487.3,0.00237025]
[1759888478118,4.61517425,4487.4,4487.3,0.31457025]
[1759888478724,4.61517425,4487.4,4487.3,0.00237025]
[1759888479121,4.61517425,4487.4,4487.3,0.52637025]
[1759888480220,3.51254131,4487.4,4487.3,0.52637025]
[1759888480525,3.51254131,4487.4,4487.3,0.74647025]
[1759888480721,3.30804131,4487.4,4487.3,0.74647025]
[1759888480927,3.09644131,4487.4,4487.3,0.74647025]
[1759888481521,0.223,4487.5,4487.4,1.15402]
[1759888481728,0.4416,4487.8,4487.7,0.93388]
[1759888482026,3.59351072,4487.8,4487.7,0.93388]
[1759888482223,3.59351072,4487.8,4487.7,1.15398]
[1759888482425,3.79361072,4487.8,4487.7,0.93388]
[1759888482828,3.79361072,4487.8,4487.7,0.32]
[1759888483429,3.15191072,4487.8,4487.7,0.7531]
[1759888484019,2.92891072,4487.8,4487.7,0.7531]
[1759888484924,0.223,4487.9,4487.8,1.15398]
[1759888485119,0.4416,4488.5,4488.4,0.61382]
[1759888485325,1.16585548,4488.5,4488.4,0.93382]
[1759888485531,4.01192977,4488.5,4488.4,0.93382]
[1759888485829,4.01192977,4488.5,4488.4,0.533]
[1759888486619,4.21202977,4488.5,4488.4,0.32]
[1759888486824,0.6417,4488.3,4488.2,0.72085]
[1759888487126,3.8003073,4488.3,4488.2,0.72085]
[1759888488626,1.04255,4488.2,4488.1,0.32]
[1759888489030,3.94029048,4488.2,4488.1,0.32]
[1759888489332,4.44182641,4488.2,4488.1,0.32]
[1759888492025,0.62418,4487.8,4487.7,0.61388]
[1759888492329,3.95498418,4487.8,4487.7,0.93388]
[1759888492530,1.04259,4487.7,4487.6,3.2078]
[1759888492728,0.4416,4487.4,4487.3,0.32237025]
[1759888492930,0.6646,4487.4,4487.3,0.53537025]
[1759888493120,3.55410418,4487.4,4487.3,0.53537025]
[1759888493626,3.95502418,4487.4,4487.3,0.53537025]
[1759888493830,3.55410418,4487.4,4487.3,1.15640025]
[1759888494031,3.95502418,4487.4,4487.3,1.15640025]
[1759888494727,3.95502418,4487.4,4487.3,0.75547025]
[1759888494927,4.15512418,4487.4,4487.3,0.75547025]
[1759888495830,2.88950418,4487.4,4487.3,1.9138822]
[1759888498225,3.50872418,4487.4,4487.3,1.5129522]
[1759888498429,3.91942418,4487.4,4487.3,0.75547025]
[1759888498629,3.91942418,4487.4,4487.3,1.15640025]
[1759888498828,3.31860418,4487.4,4487.3,1.15640025]
[1759888499133,3.31860418,4487.4,4487.3,0.53537025]
[1759888499134,3.91942418,4487.4,4487.3,0.53537025]
[1759888499733,3.91942418,4487.4,4487.3,0.32237025]
[1759888499933,3.91942418,4487.4,4487.3,0.72330025]
[1759888500530,3.91942418,4487.4,4487.3,0.94380025]
[1759888500730,3.71952418,4487.4,4487.3,1.15950025]
[1759888501335,2.88950418,4487.4,4487.3,1.9169822]
[1759888501733,3.11250418,4487.4,4487.3,1.9169822]
[1759888502134,0.223,4487.4,4487.3,1.9169822]
[1759888502435,3.37337279,4487.4,4487.3,1.9169822]
[1759888502633,3.98509279,4487.4,4487.3,0.54287025]
[1759888502837,4.18499279,4487.4,4487.3,0.94380025]
[1759888503039,3.98509279,4487.4,4487.3,0.94380025]
[1759888504239,4.48549824,4487.4,4487.3,0.94380025]
[1759888504634,4.68539824,4487.4,4487.3,0.32237025]
[1759888504835,4.68539824,4487.4,4487.3,0.72330025]
[1759888505642,4.68539824,4487.4,4487.3,0.00237025]
[1759888506042,4.28447824,4487.4,4487.3,0.40330025]
[1759888506230,4.08457824,4487.4,4487.3,0.93850025]
[1759888506435,4.08457824,4487.4,4487.3,1.15420025]
[1759888506739,4.48549824,4487.4,4487.3,1.15420025]
[1759888507541,4.08457824,4487.4,4487.3,1.15420025]
[1759888509542,4.48549824,4487.4,4487.3,1.15420025]
[1759888510141,3.65077824,4487.4,4487.3,1.15420025]
[1759888510344,3.87377824,4487.4,4487.3,1.15420025]
[1759888510941,3.65077824,4487.4,4487.3,1.15420025]
[1759888511142,3.87377824,4487.4,4487.3,1.15420025]
[1759888514249,4.48549824,4487.4,4487.3,1.15420025]